Cogmind - Beta 17 @@@ ROGUE MODE // 2026.08.02 @ 15:32:45 Player: 4R-ZE3 Result: Destroyed by Executioner with Helical Railgun Performance ------------- Evolutions (9) 4500 Regions Visited (17) 3400 Robots Destroyed (78) 390 Value Destroyed (3046) 3046 Prototype IDs (28) 560 Alien Tech Used (0) 0 Bonus (1816) 1816 TOTAL SCORE: 13712 Bonus ------- High Alert Combat Kills 445 Follower Combat Kills 371 Entered Garrisons 200 Used RIF Installer 500 Aligned with FarCom 300 Cogmind --------- Core Integrity 0/1600 Matter 122/300 Energy 100/100 System Corruption 10% Temperature Cool (6) Movement Core (50) Location -1/Command Parts ------- > --- POWER (2) -------- (None) > --- PROPULSION (11) -- (None) > --- UTILITY (10) ----- Advanced Hacking Suite > --- WEAPON (2) ------- (None) > --- INVENTORY (5) ---- Quantum Reactor Quantum Reactor Advanced Powered Armor Advanced Powered Armor Advanced Powered Armor Peak State ------------ > --- POWER ------------ Quantum Reactor Reinforced Quantum Reactor > --- PROPULSION ------- Cooled Field Propulsion Drive Cooled Field Propulsion Drive Cooled Field Propulsion Drive Cooled Field Propulsion Drive Cooled Field Propulsion Drive Cooled Field Propulsion Drive Cooled Field Propulsion Drive Q-thruster Impulse Thruster Array > --- UTILITY ---------- Medium Storage Unit Advanced Terrain Scan Processor Reaction Control System Improved Hacking Suite Advanced Hacking Suite Advanced Hacking Suite System Shield System Shield Improved System Shield Improved Component Analysis Suite > --- WEAPON ----------- Force Lance Force Lance > --- INVENTORY -------- Reinforced Quantum Reactor Advanced Powered Armor Advanced Powered Armor Advanced Powered Armor Advanced Powered Armor Advanced Powered Armor Advanced Powered Armor Fusion Bomb Launcher [Rating: 160] Favorites ----------- Power Light Antimatter Reactor Engine Ion Engine Power Core Light Nuclear Core Reactor Light Antimatter Reactor Propulsion Light Treads Treads Light Treads Leg Carbon-fiber Leg Wheel Wheel Hover Unit Backup Propulsion I Flight Unit Cooled Field Propulsion Drive Utility System Shield Device Advanced Terrain Scanner Storage Huge Storage Unit Processor Advanced Terrain Scan Processor Hackware System Shield Protection Hardened Medium Armor Plating Weapon Gauss Rifle Energy Gun Medium Laser Ballistic Gun Gauss Rifle Ballistic Cannon Advanced Assault Cannon Launcher Rocket Launcher Slashing Weapon Katana Piercing Weapon Force Lance Build | -11 -10 -10 -10 -9 -8 -8 -8 -7 -6 -6 -6 -5 -4 -3 -2 -1 -1 ------- Run | Yrd Mat Min Exi Min Mat Gar Mat Fac Fac Was Fac Fac Fac Res Res Acc Com Slots Evolved 18 | . . . . . 4 . . 2 2 . . 2 2 2 2 2 . Power 1 | . . . . . . . . . . . . . 1 . . . . Propulsion 9 | . . . . . 2 . . 2 . . . 1 1 . 1 2 . Utility 8 | . . . . . 2 . . . 2 . . 1 . 2 1 . . Weapon . | . . . . . . . . . . . . . . . . . . Parts Attached 116 | 6 6 4 1 . 11 23 12 8 4 . 1 4 18 1 4 6 7 Power 16 | 1 1 2 . . 1 4 1 1 1 . . . 1 . 1 1 1 Engine 4 | 1 1 2 . . . . . . . . . . . . . . . Core 6 | . . . . . 1 3 1 1 . . . . . . . . . Reactor 6 | . . . . . . 1 . . 1 . . . 1 . 1 1 1 Propulsion 48 | 2 2 . . . 5 11 5 6 . . . 1 10 . 2 1 3 Treads 13 | 2 . . . . 3 4 4 . . . . . . . . . . Leg 8 | . . . . . . 7 1 . . . . . . . . . . Wheel 4 | . 2 . . . 2 . . . . . . . . . . . . Hover . | . . . . . . . . . . . . . . . . . . Flight 23 | . . . . . . . . 6 . . . 1 10 . 2 1 3 Utility 32 | 1 3 1 . . 3 2 2 1 3 . 1 3 3 1 1 4 3 Device 8 | . . 1 . . . . . . 2 . 1 . 1 . . 2 1 Storage 5 | 1 2 . . . . . . . . . . 1 . . 1 . . Processor 1 | . . . . . . . . . 1 . . . . . . . . Hackware 9 | . . . . . 2 . 1 . . . . 2 2 1 . 1 . Protection 9 | . 1 . . . 1 2 1 1 . . . . . . . 1 2 Artifact . | . . . . . . . . . . . . . . . . . . Weapon 20 | 2 . 1 1 . 2 6 4 . . . . . 4 . . . . Energy Gun 1 | 1 . . . . . . . . . . . . . . . . . Energy Cannon . | . . . . . . . . . . . . . . . . . . Ballistic Gun 10 | 1 . 1 1 . 1 3 3 . . . . . . . . . . Ballistic Cannon 3 | . . . . . 1 1 . . . . . . 1 . . . . Launcher 1 | . . . . . . 1 . . . . . . . . . . . Special Weapon . | . . . . . . . . . . . . . . . . . . Impact Weapon . | . . . . . . . . . . . . . . . . . . Slashing Weapon 3 | . . . . . . 1 1 . . . . . 1 . . . . Piercing Weapon 2 | . . . . . . . . . . . . . 2 . . . . Special Melee Weapon . | . . . . . . . . . . . . . . . . . . Unidentified Prototypes 3 | . . . . . . . . . . . . . 2 . 1 . . Parts Lost 70 | . 1 7 . . 1 10 9 . . . . 1 12 2 6 2 19 Power 13 | . 1 2 . . . 3 1 . . . . . 3 1 1 . 1 Propulsion 35 | . . 2 . . 1 4 5 . . . . 1 8 . 2 . 12 Utility 14 | . . 1 . . . 1 . . . . . . . 1 3 2 6 Weapon 8 | . . 2 . . . 2 3 . . . . . 1 . . . . Highest Loss Streak 13 | . 1 3 . . 1 7 4 . . . . 1 8 2 5 2 13 To Critical Strikes 1 | . . . . . . 1 . . . . . . . . . . . Average Backups 13 | . 7 12 14 15 18 19 19 6 4 5 5 4 5 3 3 8 6 Power . | . 1 . . . . . 1 . . . . . . . . 1 1 Propulsion 6 | . 3 9 10 10 10 9 8 2 . . . . . 2 1 . . Utility 3 | . . 1 1 2 2 3 6 2 4 5 4 3 4 1 1 5 4 Weapon 3 | . 1 2 3 3 5 6 3 . . . . . . . . 1 . Tool/Special . | . . . . . . . . . . . . . . . . . . Unused Backups 30 | . . . . . 5 6 . 6 . . . . 3 1 . 1 8 Power 3 | . . . . . . . . . . . . . . . . . 3 Propulsion 5 | . . . . . 2 . . 2 . . . . . 1 . . . Utility 13 | . . . . . . 1 . 4 . . . . 3 . . 1 4 Weapon 9 | . . . . . 3 5 . . . . . . . . . . 1 Tool/Special . | . . . . . . . . . . . . . . . . . . Average Slot Usage (%) 91 | . 94 72 93 100 98 92 95 98 99 100 100 99 75 98 85 82 68 Engine 2 | . 14 9 14 14 4 . . . . . . . 5 3 . . . Core 2 | . . . . . 4 4 3 7 2 . . . . . . . 1 Reactor 2 | . . . . . . 2 3 . 3 6 6 5 3 4 4 4 5 Treads 13 | . 24 6 . . 10 11 32 1 . . . . . . . . . Leg 5 | . . . . . . 18 . . . . . . . . . . . Wheel 4 | . 3 21 28 28 25 . . . . . . . . . . . . Flight 9 | . . . . . . . . 42 40 40 40 41 24 38 34 33 32 Device 2 | . . 1 14 14 6 . . . 11 13 13 11 8 8 3 4 . Storage 7 | . 14 14 14 14 9 9 9 . . . . 4 1 . 3 4 1 Processor 1 | . . . . . . . . . 5 6 6 5 5 4 4 4 4 Hackware 15 | . . . . . 16 18 22 15 13 13 13 16 16 23 21 23 17 Protection 5 | . 8 . . . 2 9 4 14 7 6 6 . . 3 3 . 2 Energy Gun 1 | . 14 4 . . . . . . . . . . 2 . . . . Ballistic Gun 9 | . 14 14 21 28 17 8 17 1 . . . . . . . . . Ballistic Cannon 2 | . . . . . . 6 . . . . . . . . . . . Slashing Weapon 2 | . . . . . . 2 . 13 13 13 13 11 3 . . . . Peak Build Rating 160 | 6 8 9 17 17 35 47 40 41 47 47 50 61 120 127 126 160 154 Average Rating 43 | 4 6 6 13 17 30 36 36 34 45 47 49 59 72 126 123 145 124 On Entrance 50 | . 6 8 9 17 17 35 38 36 35 47 47 50 58 120 123 126 143 Avg Prop Armor Cover (%) 4 | . . . . . 8 9 3 1 1 . . . 6 3 2 4 3 Naked Turns . | . . . . . . . . . . . . . . . . . . Heaviest Build 108 | 13 91 31 89 89 97 108 108 101 26 26 26 28 28 35 52 74 72 Greatest Support 90 | 40 40 40 20 20 62 80 80 60 32 32 32 39 56 56 67 90 82 Greatest Overweight (x) 31 | 1 4 1 4 4 4 31 2 1 . . . . 2 . . . 1 Average Overweight (x) . | . . . 2 4 2 1 1 . . . . . . . . . . Largest Inventory Capacity 25 | 8 25 15 25 25 25 25 25 25 5 5 5 10 10 5 10 10 10 Average Capacity 18 | 7 14 15 20 25 25 25 25 6 5 5 5 9 6 5 9 10 6 Most Carried 25 | 1 14 15 20 20 25 25 25 24 5 5 5 6 10 5 6 10 9 Average Carried 16 | . 7 12 17 20 23 24 24 6 4 5 4 5 5 4 4 8 6 Final Capacity 25 | 8 15 15 25 25 25 25 25 5 5 5 5 10 5 5 10 10 5 Final Carried 25 | 1 14 15 20 20 25 24 24 5 5 5 5 6 5 5 4 8 5 Class Distribution -------------------- 48% | Scavenger-Mutant 14% | Mutant 11% | Hacker-Scout 11% | Hacker-Mutant 5% | Wizard-Scout 3% | Hacker-Sprinter 3% | Wizard-Sprinter Dominant Class ---------------- Mutant | -10/Materials Mutant | -10/Mines Scavenger-Mutant | -10/Exiles Scavenger-Mutant | -9/Mines Scavenger-Mutant | -8/Materials Scavenger-Mutant | -8/Garrison Scavenger-Mutant | -8/Materials Hacker-Sprinter | -7/Factory Hacker-Scout | -6/Factory Hacker-Scout | -6/Waste Hacker-Scout | -6/Factory Hacker-Scout | -5/Factory Hacker-Scout | -4/Factory Wizard-Scout | -3/Research Wizard-Scout | -2/Research Wizard-Sprinter | -1/Access Hacker-Sprinter | -1/Command Resources | -11 -10 -10 -10 -9 -8 -8 -8 -7 -6 -6 -6 -5 -4 -3 -2 -1 -1 ----------- Run | Yrd Mat Min Exi Min Mat Gar Mat Fac Fac Was Fac Fac Fac Res Res Acc Com Matter Collected 2787 | 139 245 173 . . 316 941 687 27 . . 51 119 10 . 40 39 . Remotely . | . . . . . . . . . . . . . . . . . . Salvage Created 2931 | . 408 133 . . 328 757 1059 27 . . . . 140 . 40 39 . Parts 163 | . 24 8 . . 21 41 52 4 . . . . 11 . . 2 . Haulers Intercepted . | . . . . . . . . . . . . . . . . . . Recyclers Shooed . | . . . . . . . . . . . . . . . . . . Parts Field Recycled . | . . . . . . . . . . . . . . . . . . Retrieved Matter . | . . . . . . . . . . . . . . . . . . Parts Self-Destructed . | . . . . . . . . . . . . . . . . . . Prevented . | . . . . . . . . . . . . . . . . . . Parts Restored . | . . . . . . . . . . . . . . . . . . Kills | -11 -10 -10 -10 -9 -8 -8 -8 -7 -6 -6 -6 -5 -4 -3 -2 -1 -1 ------- Run | Yrd Mat Min Exi Min Mat Gar Mat Fac Fac Was Fac Fac Fac Res Res Acc Com Combat Hostiles Destroyed 64 | . 13 4 . . 6 20 18 . . . . . 3 . . . . Melee 3 | . . . . . . . . . . . . . 3 . . . . Guns 51 | . 12 4 . . 6 11 18 . . . . . . . . . . Cannons 8 | . . . . . . 8 . . . . . . . . . . . AOE 1 | . . . . . . 1 . . . . . . . . . . . Classes Destroyed 11 | . 3 . . . 2 1 3 . . . . . 2 . . . . Worker 1 | . . . . . . . 1 . . . . . . . . . . Builder 6 | . 1 1 . . . . 3 . . . . . 1 . . . . Recycler 1 | . . . . . . . 1 . . . . . . . . . . Operator 6 | . . . . . 1 . 1 2 . . . . . . 1 1 . Swarmer 9 | . 6 2 . . . 1 . . . . . . . . . . . Cutter 2 | . . . . . . . . . . . . . 2 . . . . Grunt 32 | . 7 2 . . 2 9 12 . . . . . . . . . . Sentry 12 | . . . . . 4 6 2 . . . . . . . . . . Specialist 2 | . . . . . . . 2 . . . . . . . . . . Hunter 6 | . . . . . . 4 2 . . . . . . . . . . Programmer 1 | . . . . . . . . . . . . . 1 . . . . Best Kill Streak 5 | . 2 2 . . 2 5 5 1 . . . . 3 . 1 1 . Combat Bots Only 5 | . 2 2 . . 2 5 3 . . . . . 2 . . . . Max Kills in Single Turn 2 | . 1 1 . . 1 1 2 1 . . . . 1 . 1 1 . Gunslinging . | . . . . . . . . . . . . . . . . . . Exploded 1 | . . . . . . 1 . . . . . . . . . . . Melee 1 | . . . . . . . . . . . . . 1 . . . . Uniques/NPCs Destroyed . | . . . . . . . . . . . . . . . . . . Combat | -11 -10 -10 -10 -9 -8 -8 -8 -7 -6 -6 -6 -5 -4 -3 -2 -1 -1 -------- Run | Yrd Mat Min Exi Min Mat Gar Mat Fac Fac Was Fac Fac Fac Res Res Acc Com Hostile Shots Fired 903 | . 61 48 . . 43 160 159 . . . 1 6 95 14 57 12 247 Missed 330 | . 18 13 . . 13 38 41 . . . 1 5 44 9 33 8 107 Hits 573 | . 43 35 . . 30 122 118 . . . . 1 51 5 24 4 140 Melee 13 | . . . . . . . . . . . . . 13 . . . . Projectile 560 | . 43 35 . . 30 122 118 . . . . 1 38 5 24 4 140 AOE 8 | . . . . . . . . . . . . . 2 2 . . 4 Critical Strikes 31 | . . 3 . . . 5 2 . . . . . 7 . 1 . 13 Part Disruptions 1 | . . . . . . . . . . . . . . . . . 1 Damage Taken 10279 | . 472 457 . . 377 1823 1543 . . . . 17 1225 238 641 110 3376 Core 2937 | . 61 78 . . 122 279 147 . . . . . 443 23 161 19 1604 Absorbed by Shields 446 | . . . . . . 61 . . . . . . . . . . 385 Core Remaining (%) 76 | 100 . . . 44 . . . 100 . . 100 100 61 98 88 . . Volleys Fired 244 | . 42 36 . . 29 61 73 . . . . . 3 . . . . Largest 2 | . 2 2 . . 2 2 2 . . . . . 1 . . . . Hottest 80 | . 70 70 . . 50 80 56 . . . . . 47 . . . . Shots Fired 461 | . 84 51 . . 58 119 146 . . . . . 3 . . . . Gun 407 | . 84 51 . . 58 68 146 . . . . . . . . . . Cannon 52 | . . . . . . 49 . . . . . . 3 . . . . Launcher 2 | . . . . . . 2 . . . . . . . . . . . Special . | . . . . . . . . . . . . . . . . . . Kinetic 402 | . 42 36 . . 58 117 146 . . . . . 3 . . . . Thermal 57 | . 42 15 . . . . . . . . . . . . . . . Explosive 2 | . . . . . . 2 . . . . . . . . . . . Electromagnetic . | . . . . . . . . . . . . . . . . . . Robot Hit Streak 39 | . 20 7 . . 31 39 18 . . . . . . . . . . Robot Miss Streak 5 | . 2 2 . . 4 2 5 . . . . . . . . . . Penetration Max 1 | . . . . . . . 1 . . . . . . . . . . Secondary Targets 5 | . 1 1 . . . 2 1 . . . . . . . . . . Max Gunslinging Chain 1 | . 1 1 . . . 1 1 . . . . . . . . . . Shots Hit Robots 345 | . 62 34 . . 46 85 101 2 . . . . 11 . 1 3 . Core Hits 128 | . 22 11 . . 14 33 44 1 . . . . 2 . . 1 . Critical Kills 3 | . . . . . . 1 2 . . . . . . . . . . Critical Parts Destroyed 1 | . . . . . . 1 . . . . . . . . . . . Critical Strikes 19 | . 4 4 . . . 5 2 . . . . . 2 . 1 1 . Burn 8 | . 4 4 . . . . . . . . . . . . . . . Destroy 4 | . . . . . . 2 2 . . . . . . . . . . Blast 3 | . . . . . . 3 . . . . . . . . . . . Sever 2 | . . . . . . . . . . . . . 2 . . . . Impale 2 | . . . . . . . . . . . . . . . 1 1 . Melee Attacks 128 | . . . . . . 26 2 17 8 . 10 15 24 12 2 11 1 Impact . | . . . . . . . . . . . . . . . . . . Slashing 102 | . . . . . . 26 2 17 8 . 10 15 24 . . . . Piercing 26 | . . . . . . . . . . . . . . 12 2 11 1 Sneak Attacks 1 | . . . . . . . . . . . . . 1 . . . . Combat Hostiles . | . . . . . . . . . . . . . . . . . . Follow-up Attacks 2 | . . . . . . . . . . . . . . . . 2 . Damage Inflicted 6798 | . 689 407 . . 765 1807 2043 89 . . . . 817 . 57 124 . Guns 4784 | . 689 407 . . 765 880 2043 . . . . . . . . . . Cannons 769 | . . . . . . 769 . . . . . . . . . . . Explosions 158 | . . . . . . 158 . . . . . . . . . . . Melee 1087 | . . . . . . . . 89 . . . . 817 . 57 124 . Ramming . | . . . . . . . . . . . . . . . . . . Kinetic 4921 | . 202 262 . . 765 1649 2043 . . . . . . . . . . Thermal 632 | . 487 145 . . . . . . . . . . . . . . . Explosive 158 | . . . . . . 158 . . . . . . . . . . . Electromagnetic . | . . . . . . . . . . . . . . . . . . Impact . | . . . . . . . . . . . . . . . . . . Slashing 906 | . . . . . . . . 89 . . . . 817 . . . . Piercing 181 | . . . . . . . . . . . . . . . 57 124 . Highest Corruption 9 | . . . . . . . 1 . . . . . 9 . . . 9 Average Corruption 3 | . . . . . . . 1 . . . . . 5 . . . 4 Corruption Purged . | . . . . . . . . . . . . . . . . . . Corruption Blocked . | . . . . . . . . . . . . . . . . . . Effects 19 | . . . . . . . 2 . . . . . 13 . . . 4 Message Errors 5 | . . . . . . . . . . . . . 4 . . . 1 Matter Fused 7 | . . . . . . . 1 . . . . . 5 . . . 1 Heat Flow Errors 2 | . . . . . . . . . . . . . 1 . . . 1 Energy Discharges 1 | . . . . . . . . . . . . . 1 . . . . Data Loss (minor) 2 | . . . . . . . . . . . . . 1 . . . 1 Alerts 2 | . . . . . . . 1 . . . . . 1 . . . . Overload Shots . | . . . . . . . . . . . . . . . . . . Overflow Damage 320 | . . . . . . 4 . 16 . . . . 231 . 69 . . Projectiles 4 | . . . . . . 4 . . . . . . . . . . . Explosions . | . . . . . . . . . . . . . . . . . . Melee 316 | . . . . . . . . 16 . . . . 231 . 69 . . Knockbacks 8 | . . . . . . 8 . . . . . . . . . . . Impact . | . . . . . . . . . . . . . . . . . . Kinetic 7 | . . . . . . 7 . . . . . . . . . . . Secondary 1 | . . . . . . 1 . . . . . . . . . . . Self-Inflicted Damage 15 | . . . . . . 15 . . . . . . . . . . . Shots 2 | . . . . . . 2 . . . . . . . . . . . Rammed . | . . . . . . . . . . . . . . . . . . Targets Rammed . | . . . . . . . . . . . . . . . . . . Kicked . | . . . . . . . . . . . . . . . . . . Crushed . | . . . . . . . . . . . . . . . . . . Highest Temperature 364 | . 364 158 . . 21 110 87 325 75 . . . 122 16 85 312 238 Average Temperature 61 | . 100 106 . . 8 25 26 60 40 . . . 41 7 37 61 84 Received Heat Transfer 1623 | . 204 240 . . 108 396 441 . . . . . 54 18 54 . 108 Siege Activations . | . . . . . . . . . . . . . . . . . . Martial Activations . | . . . . . . . . . . . . . . . . . . Shielding Activations . | . . . . . . . . . . . . . . . . . . Robots Disrupted . | . . . . . . . . . . . . . . . . . . Combat Hostiles . | . . . . . . . . . . . . . . . . . . Robots Corrupted . | . . . . . . . . . . . . . . . . . . Combat Hostiles . | . . . . . . . . . . . . . . . . . . Parts Fried . | . . . . . . . . . . . . . . . . . . Impact Corruptions . | . . . . . . . . . . . . . . . . . . Robots Melted 1 | . 1 . . . . . . . . . . . . . . . . Combat Hostiles 1 | . 1 . . . . . . . . . . . . . . . . Parts Melted 12 | . 7 4 . . 1 . . . . . . . . . . . . Heat Transferred 2368 | . 1665 703 . . . . . . . . . . . . . . . Parts Sabotaged . | . . . . . . . . . . . . . . . . . . Parts Stolen . | . . . . . . . . . . . . . . . . . . Parts Stripped . | . . . . . . . . . . . . . . . . . . Power Chain Reactions . | . . . . . . . . . . . . . . . . . . Alert | -11 -10 -10 -10 -9 -8 -8 -8 -7 -6 -6 -6 -5 -4 -3 -2 -1 -1 ------- Run | Yrd Mat Min Exi Min Mat Gar Mat Fac Fac Was Fac Fac Fac Res Res Acc Com Maximum Alert Level 5 | . . . . . . 5 3 1 . . . . 1 . . . 1 Low Security (%) 60 | 100 100 100 . 100 100 38 . 80 100 100 100 100 99 100 100 100 81 Level 1 6 | . . . . . . 18 . 19 . . . . . . . . 18 Level 2 17 | . . . . . . 9 72 . . . . . . . . . . Level 3 8 | . . . . . . 11 27 . . . . . . . . . . Level 4 5 | . . . . . . 19 . . . . . . . . . . . Level 5 . | . . . . . . 2 . . . . . . . . . . . High Security . | . . . . . . . . . . . . . . . . . . Max Security . | . . . . . . . . . . . . . . . . . . Peak Influence 1613 | . 72 53 . . 50 1613 835 226 60 . 38 17 209 111 57 96 291 Initial 785 | . . 21 . . . 3 785 226 60 . . 13 . 109 46 2 56 Average 303 | . 28 12 . . 7 575 577 163 29 . 8 3 61 92 4 45 109 Influence Increases 4575 | . 351 168 . . 192 1843 562 47 8 . 116 56 460 54 83 230 405 Destroy 0b10 Robot/C 1540 | . 260 120 . . 120 620 360 . . . . . 60 . . . . Destroy 0b10 Robot/NC 80 | . 5 5 . . 10 5 30 10 . . . . 5 . 5 5 . Destroy Leader 230 | . 50 20 . . 50 10 90 . . . . . 10 . . . . Allied During Kill 66 | . . 3 . . 2 61 . . . . . . . . . . . Successful Hack 205 | . 6 5 . . 8 12 17 23 . . 31 26 11 . . 24 42 Disable Machine 60 | . . 15 . . . . 30 . . . . . 15 . . . . Anti-Garrison Action 950 | . . . . . . 950 . . . . . . . . . . . Destroy Structure 274 | . . . . . 2 140 5 14 8 . 10 30 14 24 3 21 3 Partial Spotted 315 | . . . . . . . . . . . 45 . 30 . 15 120 105 Lose Combat Pursuer 855 | . 30 . . . . 45 30 . . . 30 . 315 30 60 60 255 Influence Decreases 4444 | . 296 186 37 . 187 235 1678 421 130 1 88 84 251 180 161 146 363 Entered New Map 1424 | . . 34 37 . . 2 828 271 63 1 . 15 . 100 37 3 33 Time Decay 2051 | . 286 122 . . 135 . 610 150 67 . 88 67 166 60 47 123 130 Lost Part 570 | . 10 30 . . 10 93 90 . . . . 2 85 20 20 20 190 Lost Ally 150 | . . . . . . 140 . . . . . . . . . . 10 Purge Threat 249 | . . . . . 42 . 150 . . . . . . . 57 . . Squads Dispatched 27 | . 3 1 . . 1 . 4 1 . . 1 2 6 1 1 3 3 Investigation 7 | . 3 . . . . . 2 . . . . . 2 . . . . Extermination 9 | . . . . . . . . . . . . 1 3 . 1 2 2 Reinforcement 10 | . . . . . 1 . 2 1 . . 1 1 1 1 . 1 1 Assault 1 | . . 1 . . . . . . . . . . . . . . . Garrison . | . . . . . . . . . . . . . . . . . . Intercept . | . . . . . . . . . . . . . . . . . . Searches Triggered . | . . . . . . . . . . . . . . . . . . Construction Impeded . | . . . . . . . . . . . . . . . . . . Haulers Reinforced . | . . . . . . . . . . . . . . . . . . Active Scanning Responses . | . . . . . . . . . . . . . . . . . . Cargo Convoy Interrupts . | . . . . . . . . . . . . . . . . . . Stealth | -11 -10 -10 -10 -9 -8 -8 -8 -7 -6 -6 -6 -5 -4 -3 -2 -1 -1 --------- Run | Yrd Mat Min Exi Min Mat Gar Mat Fac Fac Was Fac Fac Fac Res Res Acc Com Distress Signals 20 | . 2 . . . 3 1 5 . . . 1 . 2 . 2 1 3 Communications Jammed . | . . . . . . . . . . . . . . . . . . Distress Signals . | . . . . . . . . . . . . . . . . . . Times Spotted 252 | . 19 7 . . 18 32 39 2 . 5 2 8 39 4 21 10 46 Peak Tracking Total 21 | . 3 3 . . 4 5 5 1 . 5 3 8 13 6 17 6 21 Tactical Retreats 29 | . 2 . . . . 3 2 . . . 1 . 12 2 1 2 4 Traps | -11 -10 -10 -10 -9 -8 -8 -8 -7 -6 -6 -6 -5 -4 -3 -2 -1 -1 ------- Run | Yrd Mat Min Exi Min Mat Gar Mat Fac Fac Was Fac Fac Fac Res Res Acc Com Traps Triggered 21 | . 3 . . . . 5 2 . 1 . . . 2 . . 1 7 Indirectly . | . . . . . . . . . . . . . . . . . . Trap Hack Attempts . | . . . . . . . . . . . . . . . . . . Triggered . | . . . . . . . . . . . . . . . . . . Disarmed . | . . . . . . . . . . . . . . . . . . Reprogrammed . | . . . . . . . . . . . . . . . . . . Reused . | . . . . . . . . . . . . . . . . . . Traps Extracted . | . . . . . . . . . . . . . . . . . . Installed . | . . . . . . . . . . . . . . . . . . Triggered . | . . . . . . . . . . . . . . . . . . Machines | -11 -10 -10 -10 -9 -8 -8 -8 -7 -6 -6 -6 -5 -4 -3 -2 -1 -1 ---------- Run | Yrd Mat Min Exi Min Mat Gar Mat Fac Fac Was Fac Fac Fac Res Res Acc Com Machines Disabled 6 | . . 1 . . . 2 2 . . . . . 1 . . . . Max in Single Turn 1 | . . 1 . . . 1 1 . . . . . 1 . . . . Garrison Access 7 | . . . . . . . . 1 1 . 3 . . 1 1 . . Garrison Relay 1 | . . . . . . 1 . . . . . . . . . . . Machines Repaired . | . . . . . . . . . . . . . . . . . . Machines Dismantled . | . . . . . . . . . . . . . . . . . . Machines Sabotaged . | . . . . . . . . . . . . . . . . . . Overloaded Fab Kills . | . . . . . . . . . . . . . . . . . . Hacking | -11 -10 -10 -10 -9 -8 -8 -8 -7 -6 -6 -6 -5 -4 -3 -2 -1 -1 --------- Run | Yrd Mat Min Exi Min Mat Gar Mat Fac Fac Was Fac Fac Fac Res Res Acc Com Machines Accessed 69 | . 3 2 1 . 7 3 4 7 2 . 9 5 5 4 5 7 5 Terminals 40 | . 1 1 . . 5 3 3 5 . . 3 4 2 1 2 6 4 Fabricators . | . . . . . . . . . . . . . . . . . . Repair Stations 3 | . . . . . . . . . . . . . 2 . . . 1 Recycling Units 12 | . 2 . . . . . . 1 1 . 2 1 1 2 1 1 . Scanalyzers 4 | . . . . . 1 . 1 . . . 1 . . . 1 . . Garrison Access 8 | . . . . . 1 . . 1 1 . 3 . . 1 1 . . Total Hacks 174 | . 9 3 1 . 21 5 12 23 3 . 28 11 10 10 11 19 8 Successful 82 | . 3 2 1 . 10 2 5 8 1 . 9 7 7 6 9 8 4 Failed 89 | . 5 1 . . 10 3 7 14 2 . 19 4 3 4 2 11 4 Catastrophic 12 | . 1 . . . . . 1 3 . . 1 1 3 . . 1 1 Database Lockouts 3 | . 1 . . . 1 . . 1 . . . . . . . . . Manual 99 | . 5 . 1 . 15 . 3 18 . . 20 10 5 3 3 10 6 Terminals 121 | . 5 2 . . 16 5 6 20 . . 20 10 5 3 6 16 7 Fabricators . | . . . . . . . . . . . . . . . . . . Repair Stations 5 | . . . . . . . . . . . . . 4 . . . 1 Recycling Units 23 | . 4 . . . . . . 2 2 . 3 1 1 6 1 3 . Scanalyzers 14 | . . . . . 3 . 6 . . . 2 . . . 3 . . Garrison Access 9 | . . . . . 2 . . 1 1 . 3 . . 1 1 . . Terminal Hacks 29 | . 1 2 1 . 4 2 2 3 . . 1 3 1 1 2 4 2 Part Schematic 1 | . . . . . . . . . . . . 1 . . . . . Robot Analysis 6 | . 1 . . . 2 . . 2 . . . 1 . . . . . Open Door 5 | . . 1 . . . 1 . . . . . . . . . 3 . Level Access Points 7 | . . . . . . . 1 1 . . 1 1 1 1 1 . . Branch Access Points 1 | . . . . . . . . . . . . . . . . 1 . Emergency Access Points 1 | . . . . . . 1 . . . . . . . . . . . Garrison Index 1 | . . . . . 1 . . . . . . . . . . . . Unreport Threat 3 | . . . . . 1 . 1 . . . . . . . 1 . . Investigation Status 1 | . . 1 . . . . . . . . . . . . . . . Zone Layout 1 | . . . . . . . . . . . . . . . . . 1 Proto ID Catalog 1 | . . . 1 . . . . . . . . . . . . . . Disengage Seal 1 | . . . . . . . . . . . . . . . . . 1 Fabricator Hacks . | . . . . . . . . . . . . . . . . . . Repair Station Hacks 4 | . . . . . . . . . . . . . 3 . . . 1 Refit 4 | . . . . . . . . . . . . . 3 . . . 1 Recycling Unit Hacks 11 | . 2 . . . . . . 1 . . 1 1 1 3 1 1 . Retrieve Matter 1 | . . . . . . . . . . . . . . 1 . . . Retrieve Components 10 | . 2 . . . . . . 1 . . 1 1 1 2 1 1 . Scanalyzer 9 | . . . . . 2 . 3 . . . 1 . . . 3 . . Retrieve Study 9 | . . . . . 2 . 3 . . . 1 . . . 3 . . Garrison Access Hacks 8 | . . . . . 1 . . 1 1 . 3 . . 1 1 . . Unlock Access 1 | . . . . . 1 . . . . . . . . . . . . Seal Access 7 | . . . . . . . . 1 1 . 3 . . 1 1 . . Unauthorized Hacks 21 | . . . . . 3 . . 3 . . 3 3 2 1 2 3 1 Terminals 21 | . . . . . 3 . . 3 . . 3 3 2 1 2 3 1 Assimilate 1 | . . . . . . . . . . . . . . . . . 1 Botnet 20 | . . . . . 3 . . 3 . . 3 3 2 1 2 3 . Fabricators . | . . . . . . . . . . . . . . . . . . Repair Stations . | . . . . . . . . . . . . . . . . . . Recycling Units . | . . . . . . . . . . . . . . . . . . Scanalyzers . | . . . . . . . . . . . . . . . . . . Garrison Access . | . . . . . . . . . . . . . . . . . . Data Cores Recovered 3 | . . . . . 1 . . 1 . . . . . . 1 . . Used 3 | . . . . . 1 . . 1 . . . . . . 1 . . Hacking Detections 37 | . 2 1 . . 4 1 3 4 1 . 6 3 1 3 2 4 2 Full Trace Events 3 | . 1 . . . . . 1 . . . . . 1 . . . . Feedback Events . | . . . . . . . . . . . . . . . . . . Feedback Blocked . | . . . . . . . . . . . . . . . . . . Robot Schematics Acquired . | . . . . . . . . . . . . . . . . . . Robots Built . | . . . . . . . . . . . . . . . . . . Authchips . | . . . . . . . . . . . . . . . . . . Time . | . . . . . . . . . . . . . . . . . . Total Robot Build Rating . | . . . . . . . . . . . . . . . . . . Part Schematics Acquired 1 | . . . . . . . . . . . . 1 . . . . . Parts Built . | . . . . . . . . . . . . . . . . . . Authchips . | . . . . . . . . . . . . . . . . . . Time . | . . . . . . . . . . . . . . . . . . Total Part Build Rating . | . . . . . . . . . . . . . . . . . . Part Studies Acquired 9 | . . . . . 2 . 3 . . . 1 . . . 3 . . Parts Repaired . | . . . . . . . . . . . . . . . . . . Time . | . . . . . . . . . . . . . . . . . . Parts Recycled . | . . . . . . . . . . . . . . . . . . Recycled Matter . | . . . . . . . . . . . . . . . . . . Retrieved Matter . | . . . . . . . . . . . . . . . . . . Retrieved Components 13 | . 2 . . . . . . 1 . . 1 3 1 2 3 . . Parts Scanalyzed . | . . . . . . . . . . . . . . . . . . Part Schematics Acquired . | . . . . . . . . . . . . . . . . . . Parts Damaged . | . . . . . . . . . . . . . . . . . . Bothacking | -11 -10 -10 -10 -9 -8 -8 -8 -7 -6 -6 -6 -5 -4 -3 -2 -1 -1 ------------ Run | Yrd Mat Min Exi Min Mat Gar Mat Fac Fac Was Fac Fac Fac Res Res Acc Com Used RIF Installer 1 | . . . . . . 1 . . . . . . . . . . . Robots Hacked . | . . . . . . . . . . . . . . . . . . Non-combat . | . . . . . . . . . . . . . . . . . . Combat . | . . . . . . . . . . . . . . . . . . Robot Hacks Applied . | . . . . . . . . . . . . . . . . . . Relay Couplers Released 4 | . . . . . . 4 . . . . . . . . . . . Machine Destruction 4 | . . . . . . 4 . . . . . . . . . . . Fabnet Peak Effective % . | . . . . . . . . . . . . . . . . . . Robots Rewired 7 | . . . . . . 7 . . . . . . . . . . . Allies Hacked . | . . . . . . . . . . . . . . . . . . Hacks Repelled . | . . . . . . . . . . . . . . . . . . Allies | -11 -10 -10 -10 -9 -8 -8 -8 -7 -6 -6 -6 -5 -4 -3 -2 -1 -1 -------- Run | Yrd Mat Min Exi Min Mat Gar Mat Fac Fac Was Fac Fac Fac Res Res Acc Com Total Allies 9 | . . 1 . . . 7 . . . . . . . . . . 1 Largest Group 4 | . . 1 1 1 1 4 . . . . . . . . . . 1 Highest-Rated Group 96 | . . 31 31 31 31 96 . . . . . . . . . . 26 Highest-Rated Ally 31 | . . 31 31 31 31 31 . . . . . . . . . . 26 Total Orders . | . . . . . . . . . . . . . . . . . . Ally Attacks 78 | . . 8 . . 9 61 . . . . . . . . . . . Total Damage 1635 | . . 165 . . 145 1325 . . . . . . . . . . . Kills 15 | . . 2 . . 1 12 . . . . . . . . . . . Allies Corrupted . | . . . . . . . . . . . . . . . . . . Allies Melted . | . . . . . . . . . . . . . . . . . . Intel | -11 -10 -10 -10 -9 -8 -8 -8 -7 -6 -6 -6 -5 -4 -3 -2 -1 -1 ------- Run | Yrd Mat Min Exi Min Mat Gar Mat Fac Fac Was Fac Fac Fac Res Res Acc Com Active Infowar (turns) 1855 | . . . . . . . . . 159 33 325 305 410 125 469 . 29 Terrain 1855 | . . . . . . . . . 159 33 325 305 410 125 469 . 29 Robot Analysis Total 6 | . 1 . . . 2 . . 2 . . . 1 . . . . . Derelict Logs Recovered . | . . . . . . . . . . . . . . . . . . Drone Launches . | . . . . . . . . . . . . . . . . . . Drone Recoveries . | . . . . . . . . . . . . . . . . . . Exploration | -11 -10 -10 -10 -9 -8 -8 -8 -7 -6 -6 -6 -5 -4 -3 -2 -1 -1 ------------- Run | Yrd Mat Min Exi Min Mat Gar Mat Fac Fac Was Fac Fac Fac Res Res Acc Com Turns Passed 10475 | 76 1027 490 248 16 814 3069 1999 313 159 33 325 305 445 125 491 279 261 Spaces Moved 8493 | 45 500 361 211 12 451 1031 633 455 310 129 525 661 998 331 294 747 799 Core 25 | 7 . . . . . 12 . . . . . . . . . . 6 Treads 1492 | 38 395 44 . . 27 349 633 6 . . . . . . . . . Legs 659 | . . . . . . 659 . . . . . . . . . . . Wheels 1080 | . 105 317 211 12 424 11 . . . . . . . . . . . Hover 92 | . . . . . . . . . . . . . 92 . . . . Flight 5145 | . . . . . . . . 449 310 129 525 661 906 331 294 747 793 Fastest Speed 5 | 50 95 95 95 140 110 185 240 23 23 23 23 20 19 19 13 5 5 Average Speed 87 | 149 164 102 115 140 123 245 241 28 23 23 23 20 32 25 23 19 20 Slowest Speed 1600 | 160 320 160 140 140 235 1600 320 240 26 23 23 23 110 28 28 25 99 Overloaded Moves 92 | . . . . . . . . . . . . . . . 21 47 24 Propulsion Burnouts . | . . . . . . . . . . . . . . . . . . Robots Hopped 58 | . . . . . . . . 1 1 . . 5 15 1 11 7 17 Potential Cave-ins . | . . . . . . . . . . . . . . . . . . Cave-ins Triggered . | . . . . . . . . . . . . . . . . . . Exploration Rate (%) 35 | 4 94 62 61 5 32 73 66 10 9 85 17 17 32 10 12 15 34 Regions Visited 17 Branch Regions 4 Pre-discovered Areas . | . . . . . . . . . . . . . . . . . . Known Exits Taken 9 | . . . . . 1 . 1 1 . . 1 1 1 1 1 1 . Unknown Exits Taken 5 | 1 1 1 1 1 . . . . . . . . . . . . . Scrap Searched 1 | . . 1 . . . . . . . . . . . . . . . Spaces Dug 77 | . . . . . . . 2 14 8 . 10 15 7 12 1 7 1 Terrain Destroyed 78 | . . . . . . . 3 14 8 . 10 15 7 12 1 7 1 Melee 75 | . . . . . . . 2 14 8 . 10 15 5 12 1 7 1 Projectile 3 | . . . . . . . 1 . . . . . 2 . . . . AOE . | . . . . . . . . . . . . . . . . . . Terrain Rammed . | . . . . . . . . . . . . . . . . . . Walls Destroyed . | . . . . . . . . . . . . . . . . . . Machines Disabled . | . . . . . . . . . . . . . . . . . . Actions | -11 -10 -10 -10 -9 -8 -8 -8 -7 -6 -6 -6 -5 -4 -3 -2 -1 -1 --------- Run | Yrd Mat Min Exi Min Mat Gar Mat Fac Fac Was Fac Fac Fac Res Res Acc Com Total 10840 | 51 626 429 216 11 663 1416 952 618 382 131 714 804 1054 346 698 849 880 Wait 1640 | . 54 21 3 . 144 147 220 119 55 3 176 127 9 . 406 85 71 Move 8369 | 44 499 360 210 11 451 1030 632 452 308 128 524 651 969 328 275 732 765 Hop 50 | . . . . . . . . 1 1 . . 4 12 1 7 7 17 Pick Up 96 | 1 16 6 1 . 17 14 7 6 4 . 1 2 7 2 3 7 2 Fast Attach 56 | 6 2 1 . . 3 11 4 2 . . . 1 14 . 2 4 6 Attach 46 | . 1 5 1 . 4 4 7 7 3 . . 2 4 2 3 2 1 Detach 1 | . . . . . . . . . . . . . . . . . 1 Swap 47 | . 10 . 1 . 4 23 5 1 1 . 1 1 . . . . . Drop 76 | . 2 . . . 11 18 2 13 2 . 2 1 11 1 . 3 10 Fire 244 | . 42 36 . . 29 61 73 . . . . . 3 . . . . Melee 126 | . . . . . . 26 2 17 8 . 10 15 24 12 2 9 1 Ram . | . . . . . . . . . . . . . . . . . . Kick . | . . . . . . . . . . . . . . . . . . Crush . | . . . . . . . . . . . . . . . . . . Escape Stasis 18 | . . . . . . 11 . . . . . . 1 . . . 6 Rewire 71 | . . . . . . 71 . . . . . . . . . . . Trap . | . . . . . . . . . . . . . . . . . . Miscellaneous . | . . . . . . . . . . . . . . . . . . Route ------- -11/Scrapyard -10/Materials (discovered 4 exits: [*Mat x3] / *Min) -10/Mines (discovered 3 exits: [*Mat x2] / *Exi) -10/Exiles -9/Mines -8/Materials -8/Garrison (discovered 3 exits: *Mat x3) -8/Materials (discovered 3 exits: *Fac x3) -7/Factory (discovered 6 exits: *Fac x4 / [*Sto] / [*Low]) -6/Factory -6/Waste -6/Factory (discovered 4 exits: *Fac x4) -5/Factory (discovered 4 exits: *Fac x4) -4/Factory (discovered 4 exits: *Res x4) -3/Research (discovered 3 exits: *Res x3) -2/Research (discovered 3 exits: *Acc x3) -1/Access -1/Command History --------- Turn | Location | Event 19 | -11/Scrapyard | Discovered new exit (range 14) 77 | -11/Scrapyard | Entered Materials 142 | -10/Materials | Central database locked down 306 | -10/Materials | Build established: Mutant 341 | -10/Materials | Discovered new exit (range 11) 483 | -10/Materials | Discovered new exit (range 13) 790 | -10/Materials | Discovered new exit (range 10) 927 | -10/Materials | Discovered new exit (range 10) 1104 | -10/Materials | Entered Mines 1166 | -10/Mines | Lost 3 parts (1p1u1w) 1216 | -10/Mines | Met a Derelict who couldn't figure out how to use a Trap Extractor 1247 | -10/Mines | Lost 3 parts (1p2n) 1379 | -10/Mines | Discovered new exit (range 7) 1421 | -10/Mines | Discovered new exit (range 8) 1422 | -10/Mines | Met a Derelict testing a Signal Generator 1528 | -10/Mines | Received a Rocket Launcher from a helpful Derelict 1556 | -10/Mines | Core integrity fell below 50% 1581 | -10/Mines | Deemed a non-threat by the Exiles lab entrance 1581 | -10/Mines | Discovered new exit (range 5) 1594 | -10/Mines | Entered Exiles 1594 | -10/Exiles | Accompanied by 1 ally 1618 | -10/Exiles | Met 8R-AWN 1634 | -10/Exiles | Met EX-HEX 1663 | -10/Exiles | Met EX-BIN 1675 | -10/Exiles | Aligned with FarCom system 1676 | -10/Exiles | Given EX-Vault access code 1701 | -10/Exiles | Opened EX-Vault 1711 | -10/Exiles | Found Army-in-a-Box 1737 | -10/Exiles | Warned to stay clear of 0b10 Research branches 1778 | -10/Exiles | Met EX-DEC 1827 | -10/Exiles | Discovered new exit (range 11) 1842 | -10/Exiles | Build established: Scavenger-Mutant 1842 | -10/Exiles | Left Exiles lab with Army-in-a-Box 1842 | -10/Exiles | Entered Mines 1842 | -9/Mines | Accompanied by 1 ally 1844 | -9/Mines | Discovered new exit (range 10) 1858 | -9/Mines | Entered Materials 1858 | -8/Materials | Accompanied by 1 ally 1858 | -8/Materials | Evolved 4 slots: Propulsion x2, Utility x2 2075 | -8/Materials | Central database locked down 2672 | -8/Materials | Identified exit to Garrison 2672 | -8/Materials | Entered Garrison 2700 | -8/Garrison | Triggered checkpoint 2768 | -8/Garrison | Triggered checkpoint 2807 | -8/Garrison | Core integrity fell below 50% 2834 | -8/Garrison | Lost 7 parts (1p4n1u1w) 3072 | -8/Garrison | Build established: Hacker-Mutant 3402 | -8/Garrison | Triggered checkpoint 3605 | -8/Garrison | Build established: Scavenger-Mutant 3696 | -8/Garrison | Triggered checkpoint 3719 | -8/Garrison | Triggered checkpoint 3767 | -8/Garrison | Lost 3 allies 3899 | -8/Garrison | Spotted B-75 Beast 3899 | -8/Garrison | Spotted B-75 Beast 4126 | -8/Garrison | Triggered checkpoint 4272 | -8/Garrison | Discovered new exit (range 15) 4457 | -8/Garrison | Triggered checkpoint 5083 | -8/Garrison | Discovered new exit (range 7) 5132 | -8/Garrison | Triggered checkpoint 5183 | -8/Garrison | Lost 3 allies 5686 | -8/Garrison | Discovered new exit (range 10) 5719 | -8/Garrison | Installed Relay Interface Framework 5741 | -8/Garrison | Entered Materials 6509 | -8/Materials | Core integrity fell below 20% 6563 | -8/Materials | Lost 4 parts (1p2n1w) 6716 | -8/Materials | Build established: Hacker-Mutant 7269 | -8/Materials | Build established: Scavenger-Mutant 7393 | -8/Materials | Identified exit to Factory 7740 | -8/Materials | Entered Factory 7740 | -7/Factory | Evolved 2 slots: Propulsion x2 7780 | -7/Factory | Discovered new exit (range 12) 7964 | -7/Factory | Discovered new exit (range 9) 7964 | -7/Factory | Identified exit to Factory 8000 | -7/Factory | Discovered new exit (range 12) 8037 | -7/Factory | Central database locked down 8053 | -7/Factory | Entered another Factory area 8053 | -6/Factory | Evolved 2 slots: Utility x2 8151 | -6/Factory | Discovered new exit (range 9) 8212 | -6/Factory | Sucked down chute 8212 | -6/Factory | Entered Waste 8215 | -6/Waste | Spotted C-40 Crusher 8215 | -6/Waste | Spotted C-40 Crusher 8217 | -6/Waste | Spotted C-40 Crusher 8225 | -6/Waste | Spotted C-40 Crusher 8229 | -6/Waste | Spotted C-40 Crusher 8238 | -6/Waste | Spotted C-40 Crusher 8239 | -6/Waste | Discovered new exit (range 14) 8245 | -6/Waste | Entered Factory 8351 | -6/Factory | Build established: Hacker-Scout 8520 | -6/Factory | Identified exit to Factory 8570 | -6/Factory | Entered another Factory area 8570 | -5/Factory | Evolved 2 slots: Propulsion x1, Utility x1 8626 | -5/Factory | Identified exit to Factory 8875 | -5/Factory | Entered another Factory area 8875 | -4/Factory | Evolved 2 slots: Power x1, Propulsion x1 9042 | -4/Factory | Lost 8 parts (2p6n) 9179 | -4/Factory | Lost 4 parts (1p2n1w) 9198 | -4/Factory | Discovered new exit (range 4) 9278 | -4/Factory | Identified exit to Research 9320 | -4/Factory | Entered Research 9320 | -3/Research | Evolved 2 slots: Utility x2 9381 | -3/Research | Identified exit to Research 9445 | -3/Research | Entered another Research area 9445 | -2/Research | Evolved 2 slots: Propulsion x1, Utility x1 9456 | -2/Research | Identified exit to Access 9472 | -2/Research | Found Prototype Device 9472 | -2/Research | Identified Exp. Shield Generator 9475 | -2/Research | Found Fusion Bomb Launcher 9799 | -2/Research | Build established: Wizard-Scout 9912 | -2/Research | Spotted B-90 Cyclops 9936 | -2/Research | Entered Access 9936 | -1/Access | Evolved 2 slots: Propulsion x2 9950 | -1/Access | Found Adv. Powered Armor 9952 | -1/Access | Found Adv. Powered Armor 9953 | -1/Access | Found Adv. Powered Armor 9954 | -1/Access | Found Adv. Powered Armor 9955 | -1/Access | Found Adv. Powered Armor 9957 | -1/Access | Found Adv. Powered Armor 9958 | -1/Access | Found Adv. Powered Armor 9961 | -1/Access | Lost 5 parts (1p2n2u) 10025 | -1/Access | Found Prototype Device 10045 | -1/Access | Watched by a mysterious "MATRIX" hacker 10048 | -1/Access | Identified exit to Command 10074 | -1/Access | Identified Thermal Barrier 10215 | -1/Access | Entered Command 10294 | -1/Command | Disengaged cave seal 10301 | -1/Command | Spotted M Guard 10301 | -1/Command | Spotted M Guard 10301 | -1/Command | Spotted Combat Programmer 10303 | -1/Command | Spotted Combat Programmer 10433 | -1/Command | Lost 4 parts (3n1u) 10449 | -1/Command | Spotted B-99 Colossus 10465 | -1/Command | Spotted Striker 10465 | -1/Command | Spotted Executioner 10465 | -1/Command | Spotted Executioner 10466 | -1/Command | Spotted Alpha 7 10466 | -1/Command | Spotted Alpha 7 10466 | -1/Command | Spotted Striker 10466 | -1/Command | Spotted Executioner 10466 | -1/Command | Spotted Executioner 10467 | -1/Command | Spotted B-99 Colossus 10470 | -1/Command | Spotted B-99 Colossus 10471 | -1/Command | Core integrity fell below 50% 10474 | -1/Command | Core integrity fell below 20% 10476 | -1/Command | Destroyed by Executioner with Helical Railgun Last Messages --------------- 10474_ P-80 Master resets G-73 Enforcer, system corruption cleaned. 10474_ Field strength at 2. 10474_ Slug penetrates Executioner. 10474_ Stasis field depleted. 10474_ Access Shell breached. 10475_ Triggered Stasis Trap. 10475_ A bubble of rippling energy engulfs the area. 10475_ Field strength at 94. 10475_ Adv. Terrain Scan Processor destroyed. 10475_ Critical hit (Blast). 10475_ Knocked back. 10475_ Triggered Stasis Trap. 10475_ Penetrated by Slug. 10475_ A bubble of rippling energy engulfs the area. 10475_ Field strength at 94. 10476_ Penetrated by Slug. 10476_ Field strength at 61. Map ----- +----------------------------------------------------+ | # #??????????????????????????????????? | | # #??????????????????????????????????? | | # #??????????????????????????????????? | | ##############??????????????????????????????????? | | #???????????????????????????????????????????????? | | +###?????????????????????????????????????????????? | | ?????????????????????????????????????????????? | | ! ???????????????????????????????????????????? | | """ ??????????????????????????????????????????? | | "R"" ! ?????????????????????????????????????? | | " "" #???????????????????????????????????? | | #???????????????????????????????????? | | #???????????????????????????????????? | | #???????????????????????????????????? | | ! ????????????????????????????????????? | | ######+###########???????????????????????????????? | | ??????????? #???????????????????????????????? | | ???????????? ?????????????#########??????????? | | ???????????? ???????????? ??????????? | | ????????????? ????#########BB ???????????? | | ????????????? ??###7; ; # ;BB ??????????????? | | ##############+#### ^ KE E ^ """"""???????????? | | [%*p + ^ "???????????? | | [!* gp ; ^ % ^% "????????????????? | | gp %; ^% ^ ^ "????????????????? | | pg + %7E^^@^ "????????????????? | | #########+######### K% E % BB "????????????????? | | ????# #???### # % # ;BB ^ ???????????? | | ????# #?????#"#;##### ?????????? | | ????# !! #?????####????? ?????????? | | ????# !! #???????????????##########?????????? | | ##??# ! #??????????????????????????????????? | | #### #??????????????#######?????????????? | | + #??????????????# ########??????? | | #### #??????????????# ! # #??????? | | #??###########????######????# ! # #??????? | | ##### ########## ###### #] #??????? | | " # # #??????? | | " "T + # #??????? | | ###### ########## ###### #? ???????? | | ?????#### #????????## ##????# ####+#????????? | | ????????# #?????????# #?????# + #????????? | | ???????# #?????????# #?????# #### #????????? | | #??????# #?????????# #?????# #??# #????????? | | #??????# #?????????# #?????# #??# #????????? | | #??????# #?????????# ##?????#######??# #????????? | | #??????# #?????????# #???????????????# #????????? | | #??????? ??????????# ????????????????# #????????? | | ##??????? ??????????# ?????????######## #????????? | | ????????? ??????????# ?????????# !! # #????????? | +----------------------------------------------------+ Best States ------------- Heat Dissipation 62 Energy Generation 47 Energy Capacity 600 Matter Stores 300 Matter Capacity 300 Sight Range 16 Terrain Scan Range 24 Terrain Scan Density 210 Armor Coverage 800 Resistance: TH 10 Evasion (%) 73 Recoil Reduction 4 Offensive Hacking 40 Defensive Hacking 32 Item Schematics ----------------- Cld. VTOL Module | -5/Factory | Hacked Robot Schematics ------------------ None Fabricated ------------ Nothing Repaired ---------- Nothing Studied --------- Flight Unit | -8/Materials | Hacked Minigun | -8/Materials | Hacked Cesium-ion Thruster | -8/Materials | Hacked Katana | -8/Materials | Hacked Gauss Rifle | -8/Materials | Hacked Nuclear Pulse Thruster | -6/Factory | Hacked Impulse Thruster Array | -2/Research | Hacked Force Lance | -2/Research | Hacked Rnf. Quantum Reactor | -2/Research | Hacked Alien Tech Used ----------------- None Achievements -------------- Let Me Out Of Here Challenges ------------ None Game ------ Seed ShrapnelPortableSource Manual? 0 Play Time 02:04:22 Cumulative 147.8 hours Start 2026.08.02 @ 13:04:09 End 2026.08.02 @ 15:32:45 Sessions 1 Manual Loads 0 Difficulty Rogue Special Mode None Game No. 158 Rogue 104 Adventurer 54 Explorer 0 Win Type - Total 7 Types 3/0/1/1/0/0/0/1/0/1 Lore% 59 Gallery% 55 Achievement% 52 Wizard Run 0 Options --------- Layout 1 ASCII 0 Keyboard 0 Movement Mouse Keybinds 1 Fullscreen 2 Font 32/Tamsyn Map View 50x35 Zoom Use 0% Tactical HUD 1 Map Filters NONE Filters NONE Steam 1 RUN: 5b7ae65c-8dc5-42ce-bde6-1025e1e2c4ae